bitfinex-derivatives/quotes_SOLF0:USTF0_20230701
["timestamp","ask_amount","ask_price","bid_price","bid_amount"]
[1688224633987,0.77173261,18.27,18.266,0.80649333]
[1688224634184,0.77173261,18.27,18.255,54.9456]
[1688224634185,84.22,18.269,18.257,84.22]
[1688224634382,83.58,18.265,18.255,54.9456]
[1688224634583,83.58,18.265,18.254,84.13]
[1688224634781,83.58,18.265,18.255,10.04978832]
[1688224635379,84.14,18.26,18.255,10.04978832]
[1688224635684,83.58,18.258,18.25,60.1389]
[1688224635874,0.80059783,18.256,18.25,60.1389]
[1688224636284,83.94,18.265,18.251,93.62319211]
[1688224636589,83.94,18.265,18.251,83.57]
[1688224636784,83.53,18.261,18.25,260.1389]
[1688224636985,83.53,18.261,18.251,10.05203639]
[1688224637383,0.83908953,18.258,18.254,0.81933331]
[1688224639788,84.22,18.257,18.254,0.00479234]
[1688224640297,84.22,18.255,18.254,0.00479234]
[1688224640989,83.58,18.257,18.254,0.00479234]
[1688224641693,0.83908953,18.258,18.254,0.00479234]
[1688224641888,84.22,18.262,18.254,0.00479234]
[1688224642195,84.22,18.262,18.251,10.05201517]
[1688224642889,0.86603804,18.258,18.255,0.84380686]
[1688224643287,85.08603804,18.258,18.255,0.84380686]
[1688224643992,0.86603804,18.258,18.255,0.84380686]
[1688224644389,83.53,18.268,18.259,200.0]
[1688224644599,84.22,18.272,18.259,200.0]
[1688224645594,0.85290233,18.267,18.264,0.77234198]
[1688224646395,34.1,18.273,18.264,0.77234198]
[1688224646895,34.39,18.276,18.264,0.77234198]
[1688224647191,200.0,18.283,18.268,0.77359889]
[1688224647192,34.13,18.281,18.268,0.77359889]
[1688224647389,34.13,18.281,18.265,34.1]
[1688224647584,34.13,18.284,18.269,200.0]
[1688224648396,0.85521837,18.278,18.275,0.90073325]
[1688224648592,0.77454102,18.278,18.275,0.82976953]
[1688224649190,34.1,18.277,18.261,54.4248]
[1688224649391,200.0,18.283,18.261,54.4248]
[1688224649392,34.39,18.274,18.261,54.4248]
[1688224649700,34.39,18.274,18.259,200.0]
[1688224649895,34.39,18.274,18.26,54.4248]
[1688224650097,34.39,18.276,18.26,54.4248]
[1688224650292,0.80892669,18.27,18.266,0.84108906]
[1688224650991,34.13,18.279,18.266,0.84108906]
[1688224651190,34.13,18.279,18.262,34.07]
[1688224651389,34.39,18.282,18.265,34.39]
[1688224651792,34.39,18.284,18.267,34.07]
[1688224651993,34.39,18.284,18.272,0.74244927]
[1688224652189,34.39,18.284,18.269,200.0]
[1688224652393,34.39,18.284,18.27,57.2547]
[1688224652591,34.39,18.284,18.27,91.3547]
[1688224653090,34.39,18.284,18.275,0.7451745]
[1688224654098,0.54085607,18.281,18.275,0.7451745]
[1688224654695,34.1,18.289,18.273,34.39]
[1688224655589,34.39,18.286,18.279,0.88880561]
[1688224655890,34.39,18.286,18.281,0.8107312]
[1688224656097,34.39,18.286,18.282,0.76884889]
[1688224656290,34.39,18.286,18.282,0.78681453]
[1688224657006,34.13,18.289,18.282,0.78681453]
[1688224657593,34.1,18.295,18.282,0.78681453]
[1688224657795,34.1,18.295,18.287,0.77058321]
[1688224660093,56.9374,18.298,18.287,0.77058321]
[1688224660094,34.13,18.293,18.287,0.77058321]
[1688224660299,34.13,18.293,18.288,0.75106532]
[1688224661198,34.39,18.29,18.288,0.75106532]
[1688224661403,34.39,18.29,18.271,34.39]
[1688224661591,200.0,18.293,18.269,255.4907]
[1688224661592,34.13,18.285,18.269,289.8807]
[1688224662397,0.75143947,18.279,18.275,0.7729654]
[1688224663304,34.13,18.285,18.275,0.7729654]
[1688224663998,34.13,18.29,18.275,0.7729654]
[1688224664198,34.13,18.29,18.274,34.39]
[1688224664399,34.13,18.29,18.28,0.87756086]
[1688224665196,34.39,18.293,18.28,0.87756086]
[1688224665398,34.39,18.296,18.285,0.88733665]
[1688224665605,34.39,18.296,18.289,0.89694264]
[1688224667398,34.13,18.299,18.289,0.89694264]
[1688224667607,34.13,18.299,18.292,0.87735533]
[1688224668299,91.3703,18.302,18.292,0.87735533]
[1688224671606,26.84780504,18.312,18.292,0.87735533]
[1688224671607,34.13,18.305,18.292,0.87735533]
[1688224671803,34.1,18.308,18.297,0.83141141]
[1688224672107,34.1,18.308,18.301,0.75877748]
[1688224676705,57.637,18.31,18.301,0.75877748]
[1688224680911,200.0,18.313,18.301,0.75877748]
[1688224681113,79.02873932,18.312,18.305,0.75132873]
[1688224683618,34.39,18.314,18.305,0.75132873]
[1688224698129,34.39,18.316,18.305,0.75132873]
[1688224698329,34.39,18.316,18.309,0.74241961]
[1688224701729,90.8554,18.319,18.309,0.74241961]
[1688224701930,88.84373635,18.318,18.309,0.74241961]
[1688224702119,9.80619755,18.317,18.309,0.74241961]
[1688224702318,90.8554,18.319,18.309,0.74241961]
[1688224702525,9.80621543,18.318,18.309,0.74241961]
[1688224704532,34.39,18.317,18.309,0.74241961]
[1688224705830,83.51,18.314,18.309,0.74241961]
[1688224709026,84.21,18.312,18.309,0.74241961]
[1688224712924,84.21,18.315,18.309,0.74241961]
[1688224717845,141.4254,18.319,18.309,0.74241961]
[1688224718038,78.98481173,18.318,18.309,0.74241961]
[1688224727848,84.21,18.316,18.309,0.74241961]
[1688224730440,84.21,18.314,18.309,0.74241961]
[1688224731655,79.09858005,18.313,18.309,0.74241961]
[1688224731952,84.21,18.312,18.309,0.74241961]
[1688224733549,79.16204926,18.311,18.309,0.74241961]
[1688224734251,84.21,18.314,18.309,0.74241961]
[1688224734450,79.16166923,18.313,18.309,0.74241961]
[1688224742151,79.16166923,18.312,18.309,0.74241961]
[1688224742356,79.16166923,18.311,18.309,0.74241961]
[1688224742558,79.16166923,18.31,18.309,0.74241961]
[1688224742753,79.16166923,18.315,18.309,0.74241961]
[1688224742950,79.16166923,18.314,18.309,0.74241961]
[1688224743256,79.16166923,18.313,18.309,0.74241961]
[1688224743459,79.16166923,18.312,18.309,0.74241961]
[1688224743659,79.16166923,18.311,18.309,0.74241961]
[1688224743853,79.16166923,18.31,18.309,0.74241961]
[1688224744058,79.16166923,18.315,18.309,0.74241961]
[1688224745058,79.16166923,18.314,18.309,0.74241961]
[1688224745258,140.6754,18.319,18.309,0.74241961]
[1688224753962,84.21,18.321,18.31,84.21]
[1688224754160,84.21,18.321,18.314,0.87634529]
[1688224755364,84.21,18.324,18.314,0.87634529]
[1688224755572,84.21,18.324,18.317,0.85812312]
[1688224758477,200.0,18.323,18.304,26.70109097]
[1688224758679,83.48,18.318,18.306,84.2]
[1688224759580,0.8396379,18.314,18.31,0.74529718]
[1688224765179,75.25367345,18.313,18.31,0.74529718]
[1688224765682,75.25367345,18.313,18.299,84.21]
[1688224765683,84.21,18.311,18.299,84.21]
[1688224765876,84.21,18.311,18.274,621.06283724]
[1688224765877,76.61,18.305,18.296,56.8802]
[1688224766574,0.85399307,18.302,18.296,56.8802]
[1688224766780,0.85399307,18.302,18.299,0.82979319]
[1688224770592,76.61,18.3,18.29,56.8802]
[1688224771689,0.82057126,18.297,18.293,0.76840241]
[1688224772985,76.61,18.304,18.294,76.14]
[1688224773186,76.12,18.307,18.296,76.44]
[1688224773384,75.28761737,18.306,18.296,76.44]
[1688224773978,0.76918151,18.303,18.299,0.8123476]
[1688224774690,76.12,18.307,18.299,0.8123476]
[1688224774887,75.28410431,18.306,18.299,0.8123476]
[1688224775590,0.75275493,18.304,18.299,0.8123476]
[1688224779794,1.62511614,27.672,18.3,76.42]
[1688224779795,76.12,18.311,18.3,76.42]
[1688224780090,75.28480435,18.31,18.3,76.42]
[1688224780286,75.28480435,18.31,18.303,76.42]
[1688224780488,76.22,18.314,18.303,76.42]
[1688224780684,75.30246241,18.313,18.303,76.42]
[1688224780885,0.08599902,18.31,18.307,0.86913305]
[1688224783286,75.25636514,18.315,18.307,0.86913305]
[1688224792415,76.61,18.314,18.307,0.86913305]
[1688224792604,75.25636514,18.313,18.307,0.86913305]
[1688224798506,75.25636514,18.312,18.307,0.86913305]
[1688224798805,75.25636514,18.311,18.307,0.86913305]
[1688224799004,75.25636514,18.31,18.307,0.86913305]
[1688224799203,76.61,18.315,18.307,0.86913305]
[1688224799502,75.25096023,18.314,18.307,0.86913305]
[1688224801011,76.22,18.308,18.292,76.61]
[1688224801212,76.61,18.303,18.292,76.61]
[1688224801796,306.44,18.311,18.291,27.16516239]
[1688224802005,76.15,18.302,18.299,0.75926396]
[1688224802209,77.00246993,18.302,18.299,0.75018485]
[1688224804201,0.85246993,18.302,18.299,0.75018485]
[1688224805517,220.23673055,18.332,18.299,0.75018485]
[1688224805518,76.15,18.312,18.301,76.44]
[1688224805814,75.21432423,18.311,18.301,76.44]
[1688224806124,75.21432423,18.311,18.304,76.61]
[1688224806316,76.61,18.315,18.304,76.61]
[1688224806615,75.21388494,18.314,18.308,0.89428896]
[1688224808515,146.78330103,18.325,18.31,76.0]
[1688224808516,76.22,18.321,18.31,76.0]
[1688224808717,75.21605143,18.32,18.314,0.80436444]
[1688224808906,75.21605143,18.319,18.315,0.88281458]
[1688224809110,75.21605143,18.318,18.315,0.88281458]
[1688224809311,76.61,18.321,18.315,0.88281458]
[1688224809522,75.23797302,18.32,18.315,0.88281458]
[1688224810320,76.22,18.317,18.315,0.88281458]
[1688224810826,76.61,18.319,18.315,0.88281458]
[1688224811008,75.23592784,18.318,18.315,0.88281458]
[1688224812137,76.61,18.323,18.315,0.88281458]
[1688224812310,75.23586587,18.322,18.315,0.88281458]
[1688224816120,75.23586587,18.321,18.315,0.88281458]
[1688224816321,84.1,18.326,18.316,0.78648777]
[1688224816519,75.17206277,18.325,18.316,0.78648777]
[1688224828030,75.17206277,18.325,18.319,83.82]
[1688224828234,83.95,18.33,18.319,83.82]
[1688224828235,75.17206277,18.324,18.32,0.89362128]
[1688224828441,83.95,18.33,18.32,0.89362128]
[1688224828733,75.12081558,18.329,18.32,0.89362128]
[1688224829827,84.1,18.328,18.32,0.89362128]
[1688224830033,75.12081558,18.327,18.32,0.89362128]
[1688224834436,83.51,18.334,18.322,83.92]
[1688224834648,83.51,18.334,18.326,0.81192803]
[1688224835441,83.95,18.337,18.326,0.81192803]
[1688224835655,83.51,18.34,18.33,0.85745399]
[1688224835950,9.81227336,18.339,18.333,0.80477961]
[1688224836135,83.51,18.34,18.333,0.80477961]
[1688224836540,59.4321,18.341,18.333,0.80477961]
[1688224837441,83.51,18.342,18.333,0.80477961]
[1688224837834,84.1,18.346,18.334,83.96]
[1688224838035,84.1,18.346,18.338,0.89500173]
[1688224839443,84.5,18.35,18.338,0.89500173]
[1688224839632,9.81745239,18.349,18.342,0.75478549]
[1688224843962,83.75,18.352,18.342,0.75478549]
[1688224845747,55.4193,18.356,18.344,84.1]
[1688224845944,9.12483242,18.355,18.348,0.89101882]
[1688224847845,84.1,18.354,18.348,0.89101882]
[1688224848052,9.08935488,18.353,18.348,0.89101882]
[1688224853144,9.08935488,18.353,18.337,27.03052751]
[1688224853145,83.95,18.349,18.337,83.31]
[1688224853341,9.08726489,18.348,18.337,83.31]
[1688224854446,0.82575981,18.344,18.341,0.75402046]
[1688224856351,84.1,18.354,18.342,84.05]
[1688224856549,200.0,18.364,18.343,83.31]
[1688224856550,141.6461,18.356,18.343,83.31]
[1688224856748,80.66764472,18.355,18.343,83.31]
[1688224856945,9.09160957,18.354,18.343,83.31]
[1688224857253,83.75,18.356,18.343,83.31]
[1688224857446,0.07596857,18.35,18.347,0.87874784]
[1688224863156,83.75,18.356,18.347,0.87874784]
[1688224863559,9.09143268,18.355,18.347,0.87874784]
[1688224864461,83.75,18.356,18.347,0.87874784]
[1688224865660,9.09139015,18.355,18.347,0.87874784]
[1688224867358,83.75,18.362,18.35,83.31]
[1688224867572,54.8282,18.363,18.354,0.77079317]
[1688224872070,83.75,18.362,18.354,0.77079317]
[1688224872863,54.8282,18.363,18.354,0.77079317]
[1688224874575,54.8282,18.363,18.356,83.31]
[1688224875370,83.95,18.367,18.356,83.31]
[1688224875684,80.04176333,18.366,18.36,0.85387354]
[1688224875875,1e-08,18.365,18.36,0.85387354]
[1688224876164,71.63173779,18.368,18.361,0.75505719]
[1688224876361,1e-08,18.367,18.361,0.75505719]
[1688224879369,75.85,18.366,18.361,0.75505719]
[1688224879977,71.63148922,18.365,18.361,0.75505719]
[1688224880285,75.85,18.366,18.361,0.75505719]
[1688224880892,76.11,18.369,18.361,0.75505719]
[1688224881078,79.40075739,18.368,18.361,0.75505719]
[1688224881276,79.40075739,18.367,18.361,0.75505719]
[1688224881483,79.40075739,18.366,18.361,0.75505719]
[1688224881676,76.11,18.369,18.361,0.75505719]
[1688224881877,79.40054158,18.368,18.361,0.75505719]
[1688224882091,76.11,18.369,18.361,0.75505719]
[1688224882092,79.40054158,18.367,18.361,0.75505719]
[1688224882378,79.40054158,18.366,18.361,0.75505719]
[1688224882573,76.11,18.369,18.361,0.75505719]
[1688224882776,79.40059039,18.368,18.361,0.75505719]
[1688224882976,79.40059039,18.367,18.361,0.75505719]
[1688224883186,79.40059039,18.366,18.361,0.75505719]
[1688224883383,76.11,18.369,18.361,0.75505719]
[1688224883583,79.40047481,18.368,18.361,0.75505719]
[1688224883786,79.40047481,18.367,18.361,0.75505719]
[1688224883983,79.40047481,18.366,18.361,0.75505719]
[1688224884179,76.11,18.364,18.361,0.75505719]
[1688224884382,76.11,18.364,18.354,75.98]
[1688224885279,0.75349868,18.361,18.357,0.84790817]
[1688224885882,75.85,18.358,18.347,75.98]
[1688224886291,504.34,18.364,18.344,76.11]
[1688224886292,76.11,18.355,18.344,76.11]
[1688224887087,76.11,18.355,18.348,0.80559022]
[1688224887088,0.73937761,18.351,18.348,0.80559022]
[1688224895092,76.11,18.36,18.35,75.92]
[1688224896091,0.83401431,18.357,18.353,0.89637089]
[1688224896892,76.68401431,18.357,18.353,0.89637089]
[1688224901095,76.11,18.355,18.344,75.98]
[1688224901292,76.11,18.352,18.342,58.9609]
[1688224902094,0.83081732,18.349,18.345,0.84723829]
[1688224911906,0.83081732,18.349,18.347,75.92]
[1688224923913,0.83081732,18.349,18.32,630.99380699]
[1688224923914,71.73617636,18.348,18.334,76.11]
[1688224924106,71.73617636,18.348,18.334,131.869]
[1688224924306,76.11,18.343,18.334,55.759]
[1688224924913,0.78058168,18.34,18.337,0.89965206]
[1688224940427,76.11,18.348,18.337,77.00965206]
[1688224940728,71.82342182,18.347,18.34,76.11]
[1688224940927,76.11,18.35,18.34,76.11]
[1688224941227,71.82069412,18.349,18.34,76.11]
[1688224941527,0.79764709,18.346,18.343,0.88171864]
[1688224942422,75.85,18.354,18.343,76.99171864]
[1688224942622,71.89084484,18.353,18.343,76.11]
[1688224943422,0.88824426,18.35,18.343,76.11]
[1688224943619,0.88824426,18.35,18.346,0.85361878]
[1688224943928,0.87117395,18.35,18.346,0.82490155]
[1688224951835,76.11,18.349,18.346,0.82490155]
[1688224962043,0.87117395,18.35,18.346,0.82490155]
[1688224989468,68.25,18.348,18.346,0.82490155]
[1688224992069,68.25,18.349,18.346,0.82490155]
[1688225006382,0.87117395,18.35,18.346,0.82490155]
[1688225006675,68.25,18.354,18.348,68.61]
[1688225006880,71.81887126,18.353,18.348,68.61]
[1688225007776,0.15749721,18.352,18.349,0.89318268]
[1688225007983,68.25,18.351,18.349,0.89318268]
[1688225008481,71.81941966,18.35,18.349,0.89318268]
[1688225008680,68.25,18.351,18.349,0.89318268]
[1688225009279,71.82091995,18.35,18.349,0.89318268]
[1688225012478,71.82091995,18.351,18.349,0.89318268]
[1688225012680,71.82091995,18.35,18.349,0.89318268]
[1688225012883,71.82091995,18.351,18.349,0.89318268]
[1688225016884,46.85633985,18.351,18.349,69.50318268]
[1688225017183,0.15749721,18.352,18.35,68.61]
[1688225017387,0.15749721,18.352,18.351,68.61]
[1688225018392,0.15749721,18.352,18.35,68.61]
[1688225021890,0.15749721,18.352,18.349,69.50318268]
[1688225023478,68.76749721,18.352,18.349,0.89318268]
[1688225031895,0.15749721,18.352,18.349,0.89318268]
[1688225037102,70.73921705,18.352,18.349,0.89318268]
[1688225037301,70.58171984,18.351,18.349,0.89318268]
[1688225037503,0.15749721,18.352,18.349,0.89318268]
[1688225037798,70.7389676,18.352,18.349,0.89318268]
[1688225061227,70.7389676,18.352,18.349,69.50318268]
[1688225061427,70.58147039,18.351,18.349,69.50318268]
[1688225061624,0.15749721,18.352,18.349,69.50318268]
[1688225061824,0.15749721,18.352,18.351,68.61]
[1688225065925,70.57442171,18.356,18.351,68.61]
[1688225066130,68.61,18.363,18.355,68.61]
[1688225066334,68.61,18.363,18.357,68.61]
[1688225066928,68.61,18.363,18.358,0.8086693]
[1688225073345,68.61,18.365,18.359,68.61]
[1688225073537,68.61,18.365,18.36,0.74104556]
[1688225078441,68.25,18.367,18.361,68.61]
[1688225082848,68.25,18.37,18.364,68.61]
[1688225083048,68.25,18.37,18.365,0.8115967]
[1688225083538,68.61,18.372,18.366,68.61]
[1688225083744,68.61,18.372,18.367,0.84295359]
[1688225086035,68.76113841,18.371,18.367,0.84295359]
[1688225089246,68.61,18.372,18.367,0.84295359]
[1688225089446,68.25,18.375,18.369,68.61]
[1688225089654,68.79277954,18.374,18.37,0.83608199]
[1688225090846,68.61,18.372,18.37,0.83608199]
[1688225091853,68.25,18.372,18.37,0.83608199]
[1688225092551,56.124,18.382,18.37,0.83608199]
[1688225092552,68.25,18.374,18.37,0.83608199]
[1688225092751,68.79265742,18.373,18.37,0.76578781]
[1688225094350,68.61,18.371,18.37,0.76578781]
[1688225098559,68.61,18.371,18.362,68.61]
[1688225098759,68.61,18.368,18.362,68.61]
[1688225099361,68.61,18.368,18.363,0.88603391]
[1688225099667,0.76363653,18.367,18.363,0.88603391]
[1688225101764,0.76363653,18.367,18.366,68.61]
[1688225103565,68.61,18.371,18.366,68.61]
[1688225104866,68.25,18.369,18.363,69.49603391]
[1688225105074,68.25,18.369,18.364,0.7520839]
[1688225105576,68.61,18.371,18.365,68.61]
[1688225105871,68.61,18.371,18.366,0.76631271]
[1688225111879,68.25,18.37,18.366,0.76631271]
[1688225112176,68.25,18.37,18.366,0.84756145]
[1688225115680,68.25,18.367,18.366,0.84756145]
[1688225115974,68.25,18.367,18.357,68.61]
[1688225116174,200.0,18.373,18.357,68.61]
[1688225116175,68.25,18.364,18.357,68.61]
[1688225116380,68.25,18.361,18.355,68.61]
[1688225116873,0.84859958,18.36,18.356,0.86379027]
[1688225117271,68.25,18.358,18.356,0.86379027]
[1688225117974,68.61,18.357,18.349,68.61]
[1688225118178,68.61,18.355,18.349,68.61]
[1688225118973,0.87733114,18.354,18.35,0.74886719]
[1688225120778,68.61,18.353,18.35,0.74886719]
[1688225121082,76.17,18.355,18.344,76.22]
[1688225122069,0.79727638,18.351,18.348,0.75191244]
[1688225126381,0.79727638,18.351,18.348,76.79191244]
[1688225127979,0.79727638,18.351,18.348,0.75191244]
[1688225129987,0.79727638,18.351,18.348,76.73191244]
[1688225130191,76.22,18.361,18.35,76.04]
[1688225131088,76.22,18.361,18.354,0.81950655]
[1688225131089,0.80414797,18.357,18.354,0.81950655]
[1688225144001,54.2428,18.364,18.354,0.81950655]
[1688225144201,76.16,18.365,18.354,0.81950655]
[1688225144999,0.82423286,18.361,18.354,0.81950655]
[1688225146996,75.99,18.367,18.357,75.46]
[1688225147205,68.92411485,18.366,18.357,75.46]
[1688225148007,68.92411485,18.366,18.36,0.8290015]
[1688225151302,75.99,18.367,18.36,0.8290015]
[1688225152008,76.17,18.365,18.36,0.8290015]
[1688225154603,68.98717435,18.364,18.36,0.8290015]
[1688225158208,76.13,18.362,18.348,159.32559951]
[1688225158412,75.99,18.358,18.348,159.32559951]
[1688225159313,0.7540164,18.355,18.351,0.75220585]
[1688225162911,76.9240164,18.355,18.351,0.75220585]
[1688225167013,76.9240164,18.355,18.344,76.04]
[1688225167411,75.99,18.349,18.342,57.236]
[1688225167616,75.99,18.349,18.338,76.22]
[1688225167915,75.99,18.349,18.339,10.00969055]
[1688225168118,0.79823055,18.346,18.342,0.79773384]
[1688225174623,200.0,18.363,18.342,0.79773384]
[1688225174624,76.12,18.355,18.344,75.46]
[1688225175619,0.81983828,18.351,18.348,0.76664966]
[1688225181030,0.00014849,18.351,18.348,0.76664966]
[1688225181228,0.00014849,18.351,18.35,75.98]
[1688225182628,68.98064648,18.36,18.35,75.98]
[1688225182840,75.99,18.367,18.356,76.22]
[1688225183130,68.99419357,18.366,18.356,76.22]
[1688225183724,68.99419357,18.366,18.359,76.62835105]
[1688225184027,68.99419357,18.365,18.359,76.62835105]
[1688225184228,76.22,18.371,18.361,75.46]
[1688225184530,68.98933272,18.37,18.364,0.78556769]
[1688225185933,146.36094696,18.379,18.366,75.8]
[1688225185934,76.13,18.377,18.366,75.8]
[1688225186129,69.00750016,18.376,18.37,0.80806156]
[1688225187538,69.00750016,18.375,18.37,0.80806156]
[1688225187837,69.00750016,18.374,18.37,0.80806156]
[1688225188036,69.00750016,18.373,18.37,0.80806156]
[1688225188337,69.00750016,18.372,18.37,0.80806156]
[1688225188531,69.00750016,18.371,18.37,0.80806156]
[1688225189629,69.00750016,18.376,18.37,0.80806156]
[1688225189835,69.00750016,18.375,18.37,0.80806156]
[1688225190036,69.00750016,18.374,18.37,0.80806156]
[1688225190244,69.00750016,18.373,18.37,0.80806156]
[1688225190434,130.8819,18.379,18.37,0.80806156]
[1688225190633,68.96817271,18.378,18.37,0.80806156]
[1688225192132,75.99,18.377,18.37,0.80806156]
[1688225192337,68.96817271,18.376,18.37,0.80806156]
[1688225197542,76.22,18.374,18.37,0.80806156]
[1688225197743,68.96817271,18.373,18.37,0.80806156]
[1688225199335,76.22,18.377,18.37,0.80806156]
[1688225199541,68.95249278,18.376,18.37,0.80806156]
[1688225199741,68.95249278,18.375,18.37,0.80806156]
[1688225199943,68.95249278,18.374,18.37,0.80806156]
[1688225200144,68.9521167,18.373,18.37,0.80806156]
[1688225200436,130.8819,18.379,18.37,0.80806156]
[1688225200640,68.95191851,18.378,18.37,0.80806156]
[1688225212449,152.37191851,18.378,18.37,0.80806156]
[1688225212654,68.95191851,18.377,18.37,0.80806156]
[1688225221664,83.49,18.375,18.37,0.80806156]
[1688225221856,68.95191851,18.374,18.37,0.80806156]
[1688225222061,83.49,18.375,18.37,0.80806156]
[1688225223163,83.49,18.377,18.37,0.80806156]
[1688225223359,68.96027125,18.376,18.37,0.80806156]
[1688225225265,83.49,18.377,18.37,0.80806156]
[1688225226461,54.7519,18.379,18.37,0.80806156]
[1688225226655,68.95721811,18.378,18.37,0.80806156]
[1688225232467,57.4653,18.387,18.376,83.48]
[1688225232659,68.97621338,18.386,18.38,0.77929597]
[1688225237266,57.4653,18.387,18.38,0.77929597]
[1688225238072,83.43,18.388,18.38,0.77929597]
[1688225241964,83.14,18.39,18.38,0.77929597]
[1688225242169,68.92069551,18.389,18.383,0.8774606]
[1688225245777,82.77,18.387,18.383,0.8774606]
[1688225245977,68.92069551,18.386,18.383,0.8774606]
[1688225246774,68.92069551,18.386,18.37,27.68682869]
[1688225246981,83.14,18.385,18.373,83.61]
[1688225247377,83.61,18.382,18.37,83.3]
[1688225247880,0.87353107,18.378,18.374,0.85539043]
[1688225249782,83.42,18.376,18.364,83.61]
[1688225250684,0.73777899,18.372,18.368,0.76224929]
[1688225252278,82.77,18.379,18.368,0.76224929]
[1688225252470,68.94717044,18.378,18.368,0.76224929]
[1688225253282,0.78879694,18.375,18.368,0.76224929]
[1688225256674,0.6711855,18.375,18.37,83.61]
[1688225257981,0.6711855,18.375,18.368,0.76224929]
[1688225261379,0.6711855,18.375,18.368,76.81224929]
[1688225263386,0.6711855,18.375,18.372,76.05]
[1688225266485,0.6711855,18.375,18.374,76.05]
[1688225285120,0.6711855,18.375,18.373,76.87927404]
[1688225291912,0.6711855,18.375,18.374,76.05]
[1688225297121,0.6711855,18.375,18.373,0.82927404]
[1688225301626,0.6711855,18.375,18.374,76.05]
[1688225302725,0.6711855,18.375,18.374,103.26236]
[1688225314632,1434.0,18.415,18.374,103.26236]
[1688225314633,132.2461,18.392,18.374,113.25569953]
[1688225314837,69.04852738,18.391,18.381,76.05]
[1688225315646,0.20086567,18.388,18.384,0.75751347]
[1688225322751,0.20086567,18.388,18.384,76.80751347]
[1688225323050,0.20086567,18.388,18.384,0.75751347]
[1688225323253,0.20086567,18.388,18.387,276.05]
[1688225324150,131.5961,18.401,18.387,276.05]
[1688225324349,131.5961,18.401,18.393,76.05]
[1688225324350,56.1961,18.401,18.393,76.05]
[1688225324550,76.05,18.404,18.393,76.05]
[1688225324746,69.05339452,18.403,18.393,76.05]
[1688225325246,69.05339452,18.403,18.396,0.7373761]
[1688225325652,69.05339452,18.403,18.396,76.7873761]
[1688225325856,76.05,18.407,18.396,76.7873761]
[1688225326045,69.05266986,18.406,18.396,76.7873761]
[1688225328357,69.05266986,18.406,18.399,76.05]
[1688225328561,69.05266986,18.405,18.401,0.87226913]
[1688225328763,69.05266986,18.404,18.401,0.87226913]
[1688225329069,56.0596,18.41,18.401,0.87226913]
[1688225329260,69.05063774,18.409,18.401,0.87226913]
[1688225329562,76.05,18.408,18.401,0.87226913]
[1688225329763,69.05063774,18.407,18.401,0.87226913]
[1688225331964,76.05,18.406,18.401,0.87226913]
[1688225332164,69.05063774,18.405,18.401,0.87226913]
[1688225332363,69.05063774,18.404,18.401,0.87226913]
[1688225332678,76.05,18.409,18.401,0.87226913]
[1688225332865,76.05,18.406,18.401,0.87226913]
[1688225333164,76.05,18.403,18.401,0.87226913]
[1688225338068,76.05,18.403,18.396,27.6640206]
[1688225338369,75.4,18.401,18.39,75.47]
[1688225339070,0.87086472,18.397,18.394,0.86010698]
[1688225342266,76.85086472,18.397,18.394,0.86010698]
[1688225344173,76.05,18.395,18.383,76.05]
[1688225345072,0.8588865,18.391,18.387,0.76688003]
[1688225346076,0.8588865,18.391,18.387,76.81688003]
[1688225354081,0.8588865,18.391,18.387,0.76688003]
[1688225372285,0.8588865,18.391,18.389,76.05]
[1688225375795,0.8588865,18.391,18.39,68.19]
[1688225377394,0.8588865,18.391,18.388,68.26]
[1688225379099,69.1188865,18.391,18.387,0.76688003]
[1688225380793,76.7688865,18.391,18.387,0.76688003]
[1688225388505,75.91,18.388,18.375,75.22]
[1688225388698,75.91,18.388,18.375,129.3832]
[1688225388699,69.01865768,18.387,18.375,129.3832]